lending/lending_fUSD_20250114
["ID","MTS","AMOUNT","RATE_DAILY","PERIOD"]
[348916221,1736872266719,-500.0,0.00011883,2]
[348916222,1736872266729,-1641.47,0.00011883,2]
[348916223,1736872266738,-500.0,0.00011883,2]
[348916224,1736872266748,-500.0,0.00011883,2]
[348916225,1736872266758,-500.0,0.00011883,2]
[348916226,1736872266769,-1015.13304,0.00011883,2]
[348916227,1736872266778,-500.0,0.00011883,2]
[348916228,1736872266788,-500.0,0.00011883,2]
[348916229,1736872266797,-1061.21,0.00011883,2]
[348916230,1736872266808,-500.0,0.00011883,2]
[348916231,1736872266819,-850.59,0.00011883,2]
[348916232,1736872266829,-500.0,0.00011883,2]
[348916233,1736872266838,-500.0,0.00011883,2]
[348916234,1736872266848,-4483.26,0.00011883,2]
[348916235,1736872266858,-1028.024937,0.00011883,2]
[348916236,1736872266868,-1008.96,0.00011883,2]
[348916237,1736872266878,-500.0,0.00011883,2]
[348916238,1736872266887,-1034.71,0.00011883,2]
[348916239,1736872266897,-856.72,0.00011883,2]
[348916240,1736872266906,-506.43584541,0.00011883,2]
[348916241,1736872266915,-729.65,0.00011883,2]
[348916242,1736872266925,-1242.21,0.00011883,2]
[348916243,1736872266935,-500.0,0.00011883,2]
[348916244,1736872266945,-807.27,0.00011883,2]
[348916245,1736872266954,-500.0,0.00011883,2]
[348916246,1736872266963,-1062.24,0.00011883,2]
[348916247,1736872266973,-500.0,0.00011883,2]
[348916248,1736872266982,-500.0,0.00011883,2]
[348916249,1736872266992,-570.32,0.00011883,2]
[348916250,1736872267002,-942.52,0.00011883,2]
[348916251,1736872267012,-500.0,0.00011883,2]
[348916252,1736872267021,-957.09,0.00011883,2]
[348916253,1736872267030,-500.0,0.00011883,2]
[348916254,1736872267040,-500.0,0.00011883,2]
[348916255,1736872267049,-693.23,0.00011883,2]
[348916256,1736872267058,-3653.54,0.00011883,2]
[348916257,1736872267068,-583.72,0.00011883,2]
[348916258,1736872267077,-500.0,0.00011883,2]
[348916259,1736872267087,-500.0,0.00011883,2]
[348916260,1736872267096,-1575.62,0.00011883,2]
[348916261,1736872267105,-500.0,0.00011883,2]
[348916262,1736872267114,-3284.13,0.00011883,2]
[348916263,1736872267123,-1170.16,0.00011883,2]
[348916264,1736872267134,-10132.63,0.00011883,2]
[348916265,1736872267144,-775.45,0.00011883,2]
[348916266,1736872267153,-500.0,0.00011883,2]
[348916267,1736872267163,-500.0,0.00011883,2]
[348916268,1736872267173,-1128.07,0.00011883,2]
[348916269,1736872267182,-337.3095676,0.00011883,2]
[348916270,1736872267192,-773.5,0.00011883,2]
[348916271,1736872267202,-4764.34,0.00011883,2]
[348916272,1736872267212,-593.12,0.00011883,2]
[348916273,1736872267221,-1091.87,0.00011883,2]
[348916274,1736872267230,-804.34,0.00011883,2]
[348916275,1736872267240,-3004.08,0.00011883,2]
[348916276,1736872267250,-628.33,0.00011883,2]
[348916277,1736872267259,-721.13,0.00011883,2]
[348916278,1736872267268,-2906.87,0.00011883,2]
[348916279,1736872267278,-500.0,0.00011883,2]
[348916280,1736872267287,-6610.26,0.00011883,2]
[348916281,1736872267296,-500.0,0.00011883,2]
[348916282,1736872267307,-1597.69,0.00011883,2]
[348916283,1736872267321,-903.79,0.00011883,2]
[348916284,1736872267330,-500.0,0.00011883,2]
[348916285,1736872267339,-500.0,0.00011883,2]
[348916286,1736872267350,-500.0,0.00011883,2]
[348916287,1736872267360,-1417.4,0.00011883,2]
[348916288,1736872267369,-5191.48,0.00011883,2]
[348916289,1736872267379,-505.24,0.00011883,2]
[348916290,1736872267390,-1623.37,0.00011883,2]
[348916291,1736872267400,-500.0,0.00011883,2]
[348916292,1736872267409,-500.0,0.00011883,2]
[348916293,1736872267419,-500.0,0.00011883,2]
[348916294,1736872267428,-903.24,0.00011883,2]
[348916295,1736872267438,-1969.17,0.00011883,2]
[348916296,1736872267448,-962.15,0.00011883,2]
[348916297,1736872267457,-932.49,0.00011883,2]
[348916298,1736872267466,-956.86,0.00011883,2]
[348916299,1736872267476,-500.0,0.00011883,2]
[348916300,1736872267486,-1098.98,0.00011883,2]
[348916301,1736872267496,-3822.97,0.00011883,2]
[348916302,1736872267506,-500.0,0.00011883,2]
[348916303,1736872267515,-572.49,0.00011883,2]
[348916304,1736872267524,-500.0,0.00011883,2]
[348916305,1736872267533,-2529.39,0.00011883,2]
[348916306,1736872267543,-764.12,0.00011883,2]
[348916307,1736872267553,-987.24,0.00011883,2]
[348916308,1736872267563,-500.0,0.00011883,2]
[348916309,1736872267574,-500.0,0.00011883,2]
[348916310,1736872267584,-1889.58,0.00011883,2]
[348916311,1736872267594,-538.84,0.00011883,2]
[348916312,1736872267604,-500.0,0.00011883,2]
[348916313,1736872267614,-500.0,0.00011884,2]
[348916314,1736872267624,-500.0,0.00011884,2]
[348916315,1736872267634,-500.0,0.00011884,2]
[348916316,1736872267644,-547.14,0.00011884,2]
[348916317,1736872267653,-500.0,0.00011884,2]
[348916318,1736872267663,-500.0,0.00011884,2]
[348916319,1736872267672,-500.0,0.00011884,2]
[348916320,1736872267683,-500.0,0.00011884,2]
[348916321,1736872267692,-500.0,0.00011884,2]
[348916322,1736872267702,-500.0,0.00011884,2]
[348916323,1736872267712,-500.0,0.00011884,2]
[348916324,1736872267724,-500.0,0.00011884,2]
[348916325,1736872267735,-500.0,0.00011884,2]
[348916326,1736872267746,-500.0,0.00011884,2]
[348916327,1736872267755,-500.0,0.00011884,2]
[348916328,1736872267766,-500.0,0.00011884,2]
[348916329,1736872267775,-500.0,0.00011884,2]
[348916330,1736872267784,-1451.36,0.00011884,2]
[348916331,1736872267794,-500.0,0.00011884,2]
[348916332,1736872267804,-1176.92,0.00011884,2]
[348916333,1736872267814,-500.0,0.00011884,2]
[348916334,1736872267824,-1055.97,0.00011884,2]
[348916335,1736872267833,-500.0,0.00011884,2]
[348916336,1736872267843,-500.0,0.00011884,2]
[348916337,1736872267852,-2317.71,0.00011884,2]
[348916338,1736872267861,-500.0,0.00011884,2]
[348916339,1736872267871,-500.0,0.00011884,2]
[348916340,1736872267881,-1470.32,0.00011884,2]
[348916341,1736872267894,-500.0,0.00011884,2]
[348916342,1736872267903,-2492.01,0.00011884,2]
[348916343,1736872267912,-500.0,0.00011884,2]
[348916344,1736872267921,-1795.2,0.00011884,2]
[348916345,1736872267930,-500.0,0.00011884,2]
[348916346,1736872267940,-500.0,0.00011884,2]
[348916347,1736872267949,-500.0,0.00011884,2]
[348916348,1736872267958,-4913.35,0.00011884,2]
[348916349,1736872267967,-983.62,0.00011885,2]
[348916350,1736872267977,-500.0,0.00011885,2]
[348916351,1736872267986,-500.0,0.00011885,2]
[348916352,1736872267995,-359.58,0.00011885,2]
[348916353,1736872268005,-662.39,0.00011885,2]
[348916354,1736872268014,-500.0,0.00011885,2]
[348916355,1736872268024,-500.0,0.00011885,2]
[348916356,1736872268034,-5000.0,0.000119,2]
[348916357,1736872268043,-5000.0,0.000119,2]
[348916358,1736872268053,-5000.0,0.000119,2]
[348916359,1736872268063,-3165.41699678,0.00012,4]
[348916360,1736872268074,-5006.0,0.00012,2]
[348916361,1736872268084,-2061.92635027,0.00012,7]
[348916362,1736872268094,-200.6607442,0.00012,2]
[348916363,1736872268103,-279.52,0.00012,2]
[348916364,1736872268113,-980.31,0.00012025,2]
[348916365,1736872268122,-150.0,0.00012025,2]
[348916366,1736872268131,-150.0,0.00012025,2]
[348916367,1736872268142,-150.0,0.00012025,2]
[348916368,1736872268151,-300.66,0.00012025,2]
[348916369,1736872268161,-151.76,0.00012025,2]
[348916370,1736872268171,-150.0,0.00012025,2]
[348916371,1736872268180,-980.31,0.00012025,2]
[348916372,1736872268189,-150.0,0.00012025,2]
[348916373,1736872268199,-980.31,0.00012025,2]
[348916374,1736872268208,-150.0,0.00012025,2]
[348916375,1736872268218,-150.0,0.00012025,2]
[348916376,1736872268227,-980.31,0.00012025,2]
[348916377,1736872268236,-150.0,0.00012025,2]
[348916378,1736872268246,-980.31,0.00012025,2]
[348916379,1736872268255,-889.01,0.00012025,2]
[348916380,1736872268265,-437.26,0.00012025,2]
[348916381,1736872268274,-437.26,0.00012025,2]
[348916382,1736872268283,-874.52,0.00012025,2]
[348916383,1736872268292,-437.11,0.00012025,2]
[348916384,1736872268302,-500.0,0.00012049,2]
[348916385,1736872268312,-1272.04,0.00012049,2]
[348916386,1736872268323,-673.02,0.00012049,2]
[348916387,1736872268332,-1169.12,0.00012049,2]
[348916388,1736872268344,-1255.21,0.00012049,2]
[348916389,1736872268353,-1248.07,0.00012049,2]
[348916390,1736872268363,-1751.68,0.00012049,2]
[348916391,1736872268372,-1678.69,0.00012049,2]
[348916392,1736872268382,-3037.98,0.00012049,2]
[348916393,1736872268392,-875.97,0.00012049,2]
[348916394,1736872268401,-500.0,0.00012049,2]
[348916395,1736872268410,-957.02,0.00012049,2]
[348916396,1736872268420,-1235.2,0.00012049,2]
[348916397,1736872268430,-1325.08,0.00012049,2]
[348916398,1736872268440,-2577.59,0.00012049,2]
[348916399,1736872268450,-1000.0,0.00012049,2]
[348916400,1736872268460,-2254.21,0.00012049,2]
[348916401,1736872268470,-200.0,0.00012055,2]
[348916402,1736872268480,-238.67,0.00012055,2]
[348916403,1736872268489,-162.47667438,0.00012057,2]
[348916404,1736872268499,-1271.53,0.00012081,2]
[348916405,1736872268509,-1644.81,0.00012081,2]
[348916406,1736872268520,-1764.64,0.00012081,2]
[348916407,1736872268529,-1182.39,0.00012081,2]
[348916408,1736872268539,-2864.91,0.00012081,2]
[348916409,1736872268549,-2088.07,0.00012081,2]
[348916410,1736872268558,-3460.76,0.00012081,2]
[348916411,1736872268569,-3934.84,0.00012081,2]
[348916412,1736872268580,-1542.99,0.00012081,2]
[348916413,1736872268591,-4501.55,0.00012081,2]
[348916414,1736872268602,-463.2333411,0.00012082,2]
[348916415,1736872268612,-5521.0,0.000121,2]
[348916416,1736872268622,-16222.94448749,0.00012132,2]
[348916417,1736872268801,-2340.78,0.0001215,2]
[348916418,1736872268817,-3843.52,0.0001215,2]
[348916419,1736872268828,-1528.57,0.0001215,2]
[348916420,1736872268838,-1660.46,0.0001215,2]
[348916421,1736872268848,-1123.89,0.0001215,2]
[348916422,1736872268857,-1056.44,0.0001215,2]
[348916423,1736872268867,-2582.46,0.00012156,2]
[348916424,1736872268877,-3766.22,0.00012156,2]
[348916425,1736872268888,-2301.61,0.00012156,2]
[348916426,1736872268898,-500.0,0.00012156,2]
[348916427,1736872268907,-1547.57,0.00012156,2]
[348916428,1736872268917,-3820.79,0.00012156,2]
[348916429,1736872268927,-500.0,0.00012156,2]
[348916430,1736872268938,-500.0,0.00012156,2]
[348916431,1736872268947,-1208.85,0.00012156,2]
[348916432,1736872268957,-500.0,0.00012156,2]
[348916433,1736872268967,-500.0,0.00012156,2]
[348916434,1736872268977,-1426.4,0.00012156,2]
[348916435,1736872268987,-500.0,0.00012157,2]
[348916436,1736872268996,-583.02,0.00012157,2]
[348916437,1736872269005,-199.8591604,0.00012157,2]
[348916438,1736872269015,-714.03,0.00012157,2]
[348916439,1736872269025,-500.0,0.00012157,2]
[348916440,1736872269034,-1181.5,0.00012157,2]
[348916441,1736872269045,-792.24,0.00012157,2]
[348916442,1736872269055,-1068.78,0.00012157,2]
[348916443,1736872269066,-866.79,0.00012157,2]
[348916444,1736872269076,-500.0,0.00012157,2]
[348916445,1736872269086,-602.0,0.00012157,2]
[348916446,1736872269096,-508.85,0.00012157,2]
[348916447,1736872269106,-634.25,0.00012157,2]
[348916448,1736872269116,-536.73,0.00012157,2]
[348916449,1736872269126,-692.74,0.00012157,2]
[348916450,1736872269135,-1038.27,0.00012157,2]
[348916451,1736872269146,-516.91,0.00012157,2]
[348916452,1736872269155,-747.3,0.00012157,2]
[348916453,1736872269165,-500.0,0.00012157,2]
[348916454,1736872269174,-561.38,0.00012157,2]
[348916455,1736872269184,-988.41,0.00012157,2]
[348916456,1736872269194,-1790.56,0.00012157,2]
[348916457,1736872269203,-681.34,0.00012157,2]
[348916458,1736872269213,-500.0,0.00012157,2]
[348916459,1736872269223,-500.0,0.00012157,2]
[348916460,1736872269232,-500.0,0.00012157,2]
[348916461,1736872269242,-797.39,0.00012157,2]
[348916462,1736872269252,-500.0,0.00012157,2]
[348916463,1736872269262,-500.0,0.00012157,2]
[348916464,1736872269272,-588.69,0.00012157,2]
[348916465,1736872269282,-778.29,0.00012157,2]
[348916466,1736872269291,-500.0,0.00012157,2]
[348916467,1736872269302,-940.99,0.00012157,2]
[348916468,1736872269317,-500.0,0.00012157,2]
[348916469,1736872269327,-500.0,0.00012157,2]
[348916470,1736872269336,-1229.29,0.00012157,2]
[348916471,1736872269347,-1006.25,0.00012157,2]
[348916472,1736872269357,-500.0,0.00012157,2]
[348916473,1736872269367,-500.0,0.00012157,2]
[348916474,1736872269377,-976.73,0.00012157,2]
[348916475,1736872269388,-563.76,0.00012157,2]
[348916476,1736872269398,-1044.65,0.00012157,2]
[348916477,1736872269407,-1040.02,0.00012157,2]
[348916478,1736872269416,-747.75,0.00012157,2]
[348916479,1736872269426,-942.04,0.00012157,2]
[348916480,1736872269435,-543.09,0.00012157,2]
[348916481,1736872269445,-1793.87,0.00012157,2]
[348916482,1736872269455,-1163.45,0.00012157,2]
[348916483,1736872269465,-500.0,0.00012157,2]
[348916484,1736872269474,-593.13,0.00012157,2]
[348916485,1736872269484,-500.0,0.00012157,2]
[348916486,1736872269494,-500.0,0.00012157,2]
[348916487,1736872269504,-500.0,0.00012157,2]
[348916488,1736872269514,-1074.9,0.00012157,2]
[348916489,1736872269524,-500.0,0.00012157,2]
[348916490,1736872269534,-1106.23,0.00012157,2]
[348916491,1736872269544,-500.0,0.00012157,2]
[348916492,1736872269554,-1223.96,0.00012157,2]
[348916493,1736872269564,-2876.96,0.00012157,2]
[348916494,1736872269575,-500.0,0.00012157,2]
[348916495,1736872269585,-941.53,0.00012157,2]
[348916496,1736872269596,-483.3385481,0.00012157,2]
[348916497,1736872269606,-826.21,0.00012157,2]
[348916498,1736872269615,-713.39,0.00012157,2]
[348916499,1736872269624,-500.0,0.00012157,2]
[348916500,1736872269635,-1982.6,0.00012157,2]
[348916501,1736872269645,-1269.8,0.00012157,2]
[348916502,1736872269655,-1061.78,0.00012157,2]
[348916503,1736872269665,-500.0,0.00012157,2]
[348916504,1736872269674,-1071.15,0.00012157,2]
[348916505,1736872269684,-647.07,0.00012157,2]
[348916506,1736872269694,-500.0,0.00012157,2]
[348916507,1736872269704,-1641.47,0.00012157,2]
[348916508,1736872269714,-500.0,0.00012157,2]
[348916509,1736872269723,-500.0,0.00012157,2]
[348916510,1736872269733,-500.0,0.00012157,2]
[348916511,1736872269742,-1015.13304,0.00012157,2]
[348916512,1736872269752,-500.0,0.00012157,2]
[348916513,1736872269762,-500.0,0.00012157,2]
[348916514,1736872269772,-1061.21,0.00012157,2]
[348916515,1736872269782,-500.0,0.00012157,2]
[348916516,1736872269792,-850.59,0.00012157,2]
[348916517,1736872269803,-500.0,0.00012157,2]
[348916518,1736872269813,-500.0,0.00012157,2]
[348916519,1736872269824,-4483.26,0.00012157,2]
[348916520,1736872269835,-1028.024937,0.00012157,2]
[348916521,1736872269845,-1008.96,0.00012157,2]
[348916522,1736872269854,-500.0,0.00012157,2]
[348916523,1736872269864,-1034.71,0.00012157,2]
[348916524,1736872269874,-856.72,0.00012157,2]
[348916525,1736872269884,-729.65,0.00012157,2]
[348916526,1736872269894,-1242.21,0.00012157,2]
[348916527,1736872269903,-209.18558072,0.00012157,2]
[348916528,1736872269913,-807.27,0.00012157,2]
[348916529,1736872269923,-500.0,0.00012157,2]
[348916530,1736872269933,-1062.24,0.00012157,2]
[348916531,1736872269942,-500.0,0.00012157,2]
[348916532,1736872269953,-500.0,0.00012157,2]
[348916533,1736872269963,-159.328419,0.00012157,2]
[348916534,1736872269972,-570.32,0.00012157,2]
[348916535,1736872269982,-942.52,0.00012157,2]
[348916536,1736872269993,-500.0,0.00012157,2]
[348916537,1736872270004,-957.09,0.00012157,2]
[348916538,1736872270014,-500.0,0.00012157,2]
[348916539,1736872270024,-500.0,0.00012157,2]
[348916540,1736872270034,-693.23,0.00012157,2]
[348916541,1736872270043,-3653.54,0.00012157,2]
[348916542,1736872270052,-583.72,0.00012157,2]
[348916543,1736872270062,-173.639077,0.00012157,2]
[348916544,1736872270073,-500.0,0.00012157,2]
[348916545,1736872270083,-500.0,0.00012157,2]
[348916546,1736872270093,-1575.62,0.00012157,2]
[348916547,1736872270102,-500.0,0.00012157,2]
[348916548,1736872270112,-3284.13,0.00012157,2]
[348916549,1736872270122,-1170.16,0.00012157,2]
[348916550,1736872270132,-10132.63,0.00012157,2]
[348916551,1736872270143,-775.45,0.00012157,2]
[348916552,1736872270153,-500.0,0.00012157,2]
[348916553,1736872270163,-500.0,0.00012157,2]
[348916554,1736872270172,-1128.07,0.00012157,2]
[348916555,1736872270182,-773.5,0.00012157,2]
[348916556,1736872270192,-4764.34,0.00012157,2]
[348916557,1736872270201,-593.12,0.00012157,2]
[348916558,1736872270211,-151.0,0.00012157,2]
[348916559,1736872270221,-151.0,0.00012157,2]
[348916560,1736872270231,-151.0,0.00012157,2]
[348916561,1736872270240,-151.0,0.00012157,2]
[348916562,1736872270250,-151.0,0.00012157,2]
[348916563,1736872270260,-151.0,0.00012157,2]
[348916564,1736872270269,-151.0,0.00012157,2]
[348916565,1736872270279,-151.0,0.00012157,2]
[348916566,1736872270288,-1091.87,0.00012157,2]
[348916567,1736872270298,-151.0,0.00012157,2]
[348916568,1736872270310,-151.0,0.00012157,2]
[348916569,1736872270325,-151.0,0.00012157,2]
[348916570,1736872270335,-151.0,0.00012157,2]
[348916571,1736872270346,-151.0,0.00012157,2]
[348916572,1736872270355,-151.0,0.00012157,2]
[348916573,1736872270365,-151.0,0.00012157,2]
[348916574,1736872270375,-151.0,0.00012157,2]
[348916575,1736872270387,-804.34,0.00012157,2]
[348916576,1736872270396,-151.0,0.00012157,2]
[348916577,1736872270406,-151.0,0.00012157,2]
[348916578,1736872270415,-151.0,0.00012157,2]
[348916579,1736872270425,-151.0,0.00012157,2]
[348916580,1736872270435,-151.0,0.00012157,2]
[348916581,1736872270444,-151.0,0.00012157,2]
[348916582,1736872270454,-151.0,0.00012157,2]
[348916583,1736872270463,-151.0,0.00012157,2]
[348916584,1736872270473,-151.0,0.00012157,2]
[348916585,1736872270483,-151.0,0.00012157,2]
[348916586,1736872270493,-151.0,0.00012157,2]
[348916587,1736872270503,-151.0,0.00012157,2]
[348916588,1736872270512,-151.0,0.00012157,2]
[348916589,1736872270522,-151.0,0.00012157,2]
[348916590,1736872270531,-151.0,0.00012157,2]
[348916591,1736872270541,-3004.08,0.00012157,2]
[348916592,1736872270551,-151.0,0.00012157,2]
[348916593,1736872270561,-151.0,0.00012157,2]
[348916594,1736872270572,-151.0,0.00012157,2]
[348916595,1736872270582,-628.33,0.00012157,2]
[348916596,1736872270591,-151.0,0.00012157,2]
[348916597,1736872270603,-151.0,0.00012157,2]
[348916598,1736872270613,-151.0,0.00012157,2]
[348916599,1736872270622,-151.0,0.00012157,2]
[348916600,1736872270632,-151.0,0.00012157,2]
[348916601,1736872270642,-151.0,0.00012157,2]
[348916602,1736872270651,-151.0,0.00012157,2]
[348916603,1736872270660,-151.0,0.00012157,2]
[348916604,1736872270670,-151.0,0.00012157,2]
[348916605,1736872270680,-721.13,0.00012157,2]
[348916606,1736872270689,-151.0,0.00012157,2]
[348916607,1736872270699,-151.0,0.00012157,2]
[348916608,1736872270709,-151.0,0.00012157,2]
[348916609,1736872270718,-151.0,0.00012157,2]
[348916610,1736872270727,-151.0,0.00012157,2]
[348916611,1736872270737,-2906.87,0.00012157,2]
[348916612,1736872270746,-151.0,0.00012157,2]
[348916613,1736872270756,-151.0,0.00012157,2]
[348916614,1736872270766,-151.0,0.00012157,2]
[348916615,1736872270776,-151.0,0.00012157,2]
[348916616,1736872270785,-151.0,0.00012157,2]
[348916617,1736872270795,-151.0,0.00012157,2]
[348916618,1736872270804,-151.0,0.00012157,2]
[348916619,1736872270814,-151.0,0.00012157,2]
[348916620,1736872270826,-151.0,0.00012157,2]
[348916621,1736872270835,-151.0,0.00012157,2]
[348916622,1736872270845,-151.0,0.00012157,2]
[348916623,1736872270855,-151.0,0.00012157,2]
[348916624,1736872270864,-151.0,0.00012157,2]
[348916625,1736872270874,-151.0,0.00012157,2]
[348916626,1736872270884,-151.0,0.00012157,2]
[348916627,1736872270893,-151.0,0.00012157,2]
[348916628,1736872270903,-151.0,0.00012157,2]
[348916629,1736872270912,-500.0,0.00012157,2]
[348916630,1736872270922,-151.0,0.00012157,2]
[348916631,1736872270931,-151.0,0.00012157,2]
[348916632,1736872270941,-6610.26,0.00012157,2]
[348916633,1736872270951,-151.0,0.00012157,2]
[348916634,1736872270961,-151.0,0.00012157,2]
[348916635,1736872270971,-151.0,0.00012157,2]
[348916636,1736872270980,-151.0,0.00012157,2]
[348916637,1736872270990,-151.0,0.00012157,2]
[348916638,1736872271000,-151.0,0.00012157,2]
[348916639,1736872271010,-151.0,0.00012157,2]
[348916640,1736872271020,-500.0,0.00012157,2]
[348916641,1736872271029,-151.0,0.00012157,2]
[348916642,1736872271039,-151.0,0.00012157,2]
[348916643,1736872271049,-151.0,0.00012157,2]
[348916644,1736872271059,-222.0,0.00012157,2]
[348916645,1736872271070,-1597.69,0.00012157,2]
[348916646,1736872271080,-903.79,0.00012157,2]
[348916647,1736872271090,-500.0,0.00012157,2]
[348916648,1736872271099,-500.0,0.00012157,2]
[348916649,1736872271109,-500.0,0.00012157,2]
[348916650,1736872271119,-1417.4,0.00012157,2]
[348916651,1736872271128,-5191.48,0.00012157,2]
[348916652,1736872271139,-505.24,0.00012157,2]
[348916653,1736872271149,-1623.37,0.00012157,2]
[348916654,1736872271158,-500.0,0.00012157,2]
[348916655,1736872271168,-500.0,0.00012157,2]
[348916656,1736872271177,-500.0,0.00012157,2]
[348916657,1736872271187,-903.24,0.00012157,2]
[348916658,1736872271196,-1969.17,0.00012157,2]
[348916659,1736872271206,-962.15,0.00012157,2]
[348916660,1736872271215,-932.49,0.00012157,2]
[348916661,1736872271225,-956.86,0.00012157,2]
[348916662,1736872271235,-500.0,0.00012157,2]
[348916663,1736872271244,-1098.98,0.00012157,2]
[348916664,1736872271254,-3822.97,0.00012157,2]
[348916665,1736872271264,-500.0,0.00012157,2]
[348916666,1736872271334,-500.0,0.00012157,2]
[348916667,1736872271343,-572.49,0.00012157,2]
[348916668,1736872271354,-2529.39,0.00012157,2]
[348916669,1736872271363,-764.12,0.00012157,2]
[348916670,1736872271373,-987.24,0.00012157,2]
[348916671,1736872271383,-500.0,0.00012157,2]
[348916672,1736872271392,-500.0,0.00012157,2]
[348916673,1736872271401,-1889.58,0.00012157,2]
[348916674,1736872271411,-538.84,0.00012157,2]
[348916675,1736872271420,-500.0,0.00012157,2]
[348916676,1736872271429,-500.0,0.00012158,2]
[348916677,1736872271439,-500.0,0.00012158,2]
[348916678,1736872271448,-500.0,0.00012158,2]
[348916679,1736872271457,-547.14,0.00012158,2]
[348916680,1736872271467,-500.0,0.00012158,2]
[348916681,1736872271476,-491.47,0.00012158,2]
[348916682,1736872271486,-500.0,0.00012158,2]
[348916683,1736872271496,-500.0,0.00012158,2]
[348916684,1736872271506,-500.0,0.00012158,2]
[348916685,1736872271516,-500.0,0.00012158,2]
[348916686,1736872271525,-500.0,0.00012158,2]
[348916687,1736872271535,-500.0,0.00012158,2]
[348916688,1736872271544,-500.0,0.00012158,2]
[348916689,1736872271552,-500.0,0.00012158,2]
[348916690,1736872271561,-1451.36,0.00012158,2]
[348916691,1736872271573,-500.0,0.00012158,2]
[348916692,1736872271582,-1176.92,0.00012158,2]
[348916693,1736872271591,-500.0,0.00012158,2]
[348916694,1736872271602,-1055.97,0.00012158,2]
[348916695,1736872271612,-500.0,0.00012158,2]
[348916696,1736872271621,-477.20473561,0.00012158,2]
[348916697,1736872271631,-2317.71,0.00012158,2]
[348916698,1736872271641,-500.0,0.00012158,2]
[348916699,1736872271651,-500.0,0.00012158,2]
[348916700,1736872271660,-1470.32,0.00012158,2]
[348916701,1736872271670,-2492.01,0.00012158,2]
[348916702,1736872271680,-500.0,0.00012158,2]
[348916703,1736872271690,-1795.2,0.00012158,2]
[348916704,1736872271700,-500.0,0.00012158,2]
[348916705,1736872271710,-500.0,0.00012158,2]
[348916706,1736872271720,-500.0,0.00012158,2]
[348916707,1736872271730,-419.6779399,0.00012159,2]
[348916708,1736872271740,-500.0,0.00012159,2]
[348916709,1736872271750,-662.39,0.00012159,2]
[348916710,1736872271759,-392.96516426,0.00012159,2]
[348916711,1736872271769,-500.0,0.00012159,2]
[348916712,1736872271779,-1000.0,0.00012199,2]
[348916713,1736872271788,-2000.0,0.000122,2]
[348916714,1736872271798,-3000.0,0.0001221,2]
[348916715,1736872271808,-1456.54324193,0.00012224,2]
[348916716,1736872271818,-429.93842545,0.00012252,2]
[348916717,1736872271828,-5665.02174,0.00012255,2]
[348916718,1736872271838,-1000.0,0.00012267,2]
[348916719,1736872271848,-1000.0,0.00012267,2]
[348916720,1736872271858,-1000.0,0.00012267,2]